{"text_format":"1","workbook":"xlsx","n_sheets":1,"sheets":["Form"],"not_rendered":{"charts":0,"images":0,"macros":1,"external_links":0,"defined_names":2,"comments":1,"pivot_tables":0},"unopened":[],"bounds":{"document_bytes":16777216,"sheet_cells":100000,"rows_first":2000,"rows_last":500,"rows_between":2000,"halvings":0,"cell_chars":16384,"cell_head_chars":4096},"cells_cut":0,"cells_raw":0,"read":"whole","date_system":"1900"}

{"sheet":"Form","index":0,"n_rows":59,"n_cols":74,"rows_kept":59,"cut":false,"hidden":false,"merged":[[3,37,3,55],[4,37,4,48],[6,55,6,66],[11,4,43,99],[3,9,3,19],[4,9,4,27],[6,14,6,44],[46,61,46,70],[46,3,46,5],[46,6,46,11],[46,12,46,15],[46,16,46,24],[46,25,46,29],[46,30,46,34],[46,35,46,45],[54,35,54,45],[54,30,54,34],[53,30,53,34],[46,46,46,60],[49,46,49,60],[49,30,49,34],[50,30,50,34],[49,35,49,45],[50,35,50,45],[51,46,51,60],[53,16,53,24],[51,16,51,24],[47,3,47,5],[48,3,48,5],[49,3,49,5],[53,3,53,5],[52,3,52,5],[51,3,51,5],[48,6,48,11],[48,12,48,15],[55,3,55,5],[56,3,56,5],[50,3,50,5],[54,3,54,5],[56,6,56,11],[55,6,55,11],[53,6,53,11],[54,6,54,11],[52,6,52,11],[51,6,51,11],[52,30,52,34],[52,35,52,45],[51,35,51,45],[51,30,51,34],[55,35,55,45],[56,71,56,100],[55,71,55,100],[52,46,52,60],[54,71,54,100],[53,71,53,100],[56,25,56,29],[56,30,56,34],[56,35,56,45],[56,46,56,60],[56,61,56,70],[55,30,55,34],[55,61,55,70],[56,12,56,15],[56,16,56,24],[50,46,50,60],[53,46,53,60],[54,46,54,60],[55,46,55,60],[55,25,55,29],[52,25,52,29],[55,12,55,15],[55,16,55,24],[54,16,54,24],[54,12,54,15],[53,12,53,15],[52,71,52,100],[52,61,52,70],[52,12,52,15],[53,25,53,29],[54,25,54,29],[52,16,52,24],[53,35,53,45],[54,61,54,70],[53,61,53,70],[47,71,47,100],[47,12,47,15],[47,16,47,24],[47,35,47,45],[47,46,47,60],[51,25,51,29],[47,25,47,29],[47,30,47,34],[49,12,49,15],[47,6,47,11],[50,6,50,11],[49,25,49,29],[50,25,50,29],[50,12,50,15],[49,6,49,11],[49,16,49,24],[50,16,50,24],[51,12,51,15],[17,112,17,113],[48,16,48,24],[48,35,48,45],[48,46,48,60],[48,25,48,29],[48,30,48,34],[47,61,47,70],[51,71,51,100],[51,61,51,70],[48,61,48,70],[48,71,48,100],[50,71,50,100],[49,71,49,100],[50,61,50,70],[49,61,49,70]]}
[null,null,null,"Northern Illinois University",null,null,null,null,null,null,null,null,null,null,null,null,null,null,null,null,null,null,null,null,null,null,null,null,null,null,null,null,null,null,null,null,null,null,null,null,null,null,null,null,null,null,null,"For NIU use only",null,null,null,null," ",null,null,null,null,null,null,null,null,null,null,null,null,null,null,null,null,null,null,null,{"$f":"AND(G48=\"\",BT48<>\"\")","v":false},{"$f":"IF(BU1=TRUE,\"Error: A description can only be on a line with complete accounting information\",\"\")","v":""}]
[null,null,null,"Interdepartmental Sales Journal",null,null,null,null,null,null,null,null,null,null,null,null,null,null,null,null,null,null,null,null,null,null,null,null,null,null,null,null,null,null,null,null,null,null,null,null,null,null,null,null,null,null,null,"Revised 07/02/20  ",null,null,null,null," ",null,null,null,null,null,null,null,null,null,null,null,null,null,null,null,null,null,null,null,false,""]
[null,null,null,null,null,null,null,null,null,null,null,null,null,null,null,null,null,null,null,null,null,null,null,null,null,null,null,null,null,null,null,null,null,null,null,null,null,null,null,null,null,null,null,null,null,null,null,null,null,null,null,null,null,null,null,null,null,null,null,null,null,null,null,null,null,null,null,null,null,null,null,null,false,""]
[null,null,null,"Date",null,null,null,null,null,null,null,null,null,null,null,null,null,null,null,null,null,null,null,null,null,null,null,null,null,null,"Department",null,null,null,null,null,null,null,null,null,null,null,null,null,null,null,null,null,null,null,null,null,null,null,null,null,null,{"$f":"IF(J4 = \"\",\"Error:  Date is required\",\"\")","v":"Error:  Date is required"},null,null,null,null,null,null,null,null,null,null,null,null,null,null,false,""]
[null,null,null,"Entered by",null,null,null,null,null,null,null,null,null,null,null,null,null,null,null,null,null,null,null,null,null,null,null,null,null,null,"Extension",null,null,null,null,null,null,null,null,null,null,null,null,null,null,null,null,null,null,null,null,null,null,null,null,null,null,{"$f":"IF(J5 = \"\",\"Error:  Name is required\",\"\")","v":"Error:  Name is required"},null,null,null,null,null,null,null,null,null,null,null,null,null,null,false,""]
[null,null,null,null,null,null,null,null,null,null,null,null,null,null,null,null,null,null,null,null,null,null,null,null,null,null,null,null,null,null,null,null,null,null,null,null,null,null,null,null,null,null,null,null,null,null,null,null,null,null,null,null,null,null,null,null,null,{"$f":"IF(AL4 = \"\",\"Error:  Department is required\",\"\")","v":"Error:  Department is required"},null,null,null,null,null,null,null,null,null,null,null,null,null,null,false,""]
[null,null,null,"Description:",null,null,null,null,null,null,null,null,null,null,null,null,null,null,null,null,null,null,null,null,null,null,null,null,null,null,null,null,null,null,null,null,null,null,null,null,null,null,null,null,null,null,null,"Grand Total ",null,null,null,null,null,null,null,{"$f":"SUM(AU48:BI57)","v":0},null,null,null,null,null,null,null,null,null,null,null,null,null,null,null,null,false,""]
[null,null,null,null,null,null,null,null,null,null,null,null,null,null,null,null,null,null,null,null,null,null,null,null,null,null,null,null,null,null,null,null,null,null,null,null,null,null,null,null,null,null,null,null,null,null,null,null,null,null,null,null,null,null,null,null,null,null,null,null,null,null,null,null,null,null,null,null,null,null,null,null,false,""]
[null,null,"NEXT",null,null,null,null,"ACTUALS",null,null,null,null,null,null,"ACC",null,null,null,null,"N",null,null,null,null,null,null,null,null,null,null,null,null,null,null,null,null,null,null,null,null,null,null,null,null,null,null,null,null,null,null,null,null,null,null,null,null,null,null,null,null,null,null,null,null,null,null,null,null,null,null,null,null,{"$f":"AND(G51=\"\",BX<>\"\")","v":{"$error":"#NAME?"}},{"$error":"#NAME?"}]
[null,null,null,null,null,null,null,"Description of Interdepartmental Sale",null,null,null,null,null,null,null,null,null,null,null,null,null,null,null,null,null,null,null,null,null,null,null,null,null,null,null,null,null,null,null,null,null,null,null,null,null,null,null,null,null,null,null,null,null,null,null,null,null,null,null,null,null,null,null,null,null,null,null,null,null,null,null,null,{"$f":"AND(G56=\"\",BT56<>\"\")","v":false},""]
[null,null,null,null,null,null,null,null,null,null,null,null,null,null,null,null,null,null,null,null,null,null,null,null,null,null,null,null,null,null,null,null,null,null,null,null,null,null,null,null,null,null,null,null,null,null,null,null,null,null,null,null,null,null,null,null,null,null,null,null,null,null,null,null,null,null,null,null,null,null,null,null,{"$f":"AND(G57=\"\",BT57<>\"\")","v":false},""]
[]
[]
[]
[]
[]
[]
[]
[]
[]
[]
[]
[]
[]
[]
[]
[]
[]
[]
[]
[]
[]
[]
[]
[]
[]
[]
[]
[]
[]
[]
[]
[]
[]
[]
[]
[null,null,null,"Line",null,null," Account",null,null,null,null,null,"Fund ",null,null,null,"Cost Center",null,null,null,null,null,null,null,null,"Program",null,null,null,null,"Class",null,null,null,null,"Project/Grant",null,null,null,null,null,null,null,null,null,null,"Amount",null,null,null,null,null,null,null,null,null,null,null,null,null,null,"Reference",null,null,null,null,null,null,null,null,null,null,null,"Description"]
[null,null,"L",{"$f":"IF(G48>0,1,\"\")","v":""}]
[null,null,"L",{"$f":"IF(G49>0,D48+1,\"\")","v":""},null,null,null,null,null,null,null,null,null,null,null,null,null,null,null,null,null,null,null,null,null,{"$f":"IF(G49 > 0,\"N/A\",\"\")","v":""}]
[null,null,null,{"$f":"IF(G50>0,D49+1,\"\")","v":""},null,null,null,null,null,null,null,null,null,null,null,null,null,null,null,null,null,null,null,null,null,{"$f":"IF(G50 > 0,\"N/A\",\"\")","v":""}]
[null,null,null,{"$f":"IF(G51>0,D50+1,\"\")","v":""},null,null,null,null,null,null,null,null,null,null,null,null,null,null,null,null,null,null,null,null,null,{"$f":"IF(G51 > 0,\"N/A\",\"\")","v":""}]
[null,null,"L",{"$f":"IF(G52 > 0,D51+1,\"\")","v":""},null,null,null,null,null,null,null,null,null,null,null,null,null,null,null,null,null,null,null,null,null,""]
[null,null,"L","",null,null,null,null,null,null,null,null,null,null,null,null,null,null,null,null,null,null,null,null,null,""]
[null,null,null,"",null,null,null,null,null,null,null,null,null,null,null,null,null,null,null,null,null,null,null,null,null,{"$f":"IF(G54 > 0,\"N/A\",\"\")","v":""}]
[null,null,null,"",null,null,null,null,null,null,null,null,null,null,null,null,null,null,null,null,null,null,null,null,null,{"$f":"IF(G55 > 0,\"N/A\",\"\")","v":""}]
[null,null,"L","",null,null,null,null,null,null,null,null,null,null,null,null,null,null,null,null,null,null,null,null,null,""]
[null,null,null,"",null,null,null,null,null,null,null,null,null,null,null,null,null,null,null,null,null,null,null,null,null,""]
[]
[null,null,null,null,null,null,null,null,null,null,null,null,null,null,null,null,null,null,null,null,null,null,null,null,null,null,null,null,null,null,null,null,"Do Not Pay.  Payment will be recorded by means of this journal entry."]